fUST/lending_fUST_20240902
["ID","MTS","AMOUNT","RATE_DAILY","PERIOD"]
[336882136,1725229845243,-415.0712568,0.00024931,2]
[336882137,1725229845252,-656.9,0.00024931,2]
[336882138,1725229845261,-500.0,0.00024931,2]
[336882139,1725229845271,-500.0,0.00024931,2]
[336882140,1725229845280,-500.0,0.00024931,2]
[336882141,1725229845289,-500.0,0.00024931,2]
[336882142,1725229845298,-500.0,0.00024931,2]
[336882143,1725229845307,-194.44568111,0.00024931,2]
[336882144,1725229845316,-500.0,0.00024931,2]
[336882145,1725229845327,-500.0,0.00024931,2]
[336882146,1725229845336,-500.0,0.00024931,2]
[336882147,1725229845346,-805.62,0.00024931,2]
[336882148,1725229845355,-500.0,0.00024931,2]
[336882149,1725229845364,-718.45,0.00024931,2]
[336882150,1725229845374,-500.0,0.00024931,2]
[336882151,1725229845383,-500.0,0.00024931,2]
[336882152,1725229845392,-500.0,0.00024931,2]
[336882153,1725229845402,-527.33,0.00024931,2]
[336882154,1725229845411,-500.0,0.00024931,2]
[336882155,1725229845421,-1234.61,0.00024931,2]
[336882156,1725229845431,-500.0,0.00024931,2]
[336882157,1725229845440,-500.0,0.00024931,2]
[336882158,1725229845450,-500.0,0.00024931,2]
[336882159,1725229845459,-500.0,0.00024931,2]
[336882160,1725229845469,-500.0,0.00024931,2]
[336882161,1725229845479,-500.0,0.00024931,2]
[336882162,1725229845489,-500.0,0.00024931,2]
[336882163,1725229845498,-500.0,0.00024931,2]
[336882164,1725229845508,-500.0,0.00024931,2]
[336882165,1725229845517,-500.0,0.00024931,2]
[336882166,1725229845528,-500.0,0.00024931,2]
[336882167,1725229845537,-500.0,0.00024931,2]
[336882168,1725229845546,-500.0,0.00024931,2]
[336882169,1725229845555,-500.0,0.00024931,2]
[336882170,1725229845564,-500.0,0.00024931,2]
[336882171,1725229845576,-500.0,0.00024931,2]
[336882172,1725229845586,-500.0,0.00024931,2]
[336882173,1725229845595,-3865.88,0.00024931,2]
[336882174,1725229845604,-500.0,0.00024931,2]
[336882175,1725229845614,-831.9,0.00024931,2]
[336882176,1725229845627,-500.0,0.00024931,2]
[336882177,1725229845636,-500.0,0.00024931,2]
[336882178,1725229845650,-500.0,0.00024931,2]
[336882179,1725229845661,-500.0,0.00024931,2]
[336882180,1725229845671,-500.0,0.00024931,2]
[336882181,1725229845683,-1318.18,0.00024931,2]
[336882182,1725229845692,-500.0,0.00024931,2]
[336882183,1725229845702,-251.9472781,0.00024931,2]
[336882184,1725229845711,-543.89,0.00024931,2]
[336882185,1725229845722,-507.05321203,0.00024931,2]
[336882186,1725229845731,-500.0,0.00024931,2]
[336882189,1725229845741,-500.0,0.00024931,2]
[336882192,1725229845750,-681.52,0.00024931,2]
[336882195,1725229845759,-642.97,0.00024931,2]
[336882198,1725229845769,-538.98,0.00024931,2]
[336882201,1725229845779,-819.0,0.00024931,2]
[336882204,1725229845790,-500.0,0.00024931,2]
[336882207,1725229845799,-611.79,0.00024931,2]
[336882210,1725229845808,-500.0,0.00024931,2]
[336882213,1725229845818,-500.0,0.00024931,2]
[336882215,1725229845830,-500.0,0.00024931,2]
[336882217,1725229845839,-500.0,0.00024931,2]
[336882219,1725229845849,-609.59,0.00024931,2]
[336882221,1725229845859,-500.0,0.00024931,2]
[336882223,1725229845868,-500.0,0.00024931,2]
[336882225,1725229845878,-500.0,0.00024931,2]
[336882227,1725229845887,-500.0,0.00024931,2]
[336882229,1725229845897,-500.0,0.00024931,2]
[336882231,1725229845906,-500.0,0.00024931,2]
[336882234,1725229845915,-500.0,0.00024931,2]
[336882237,1725229845925,-500.0,0.00024931,2]
[336882239,1725229845935,-645.80779385,0.00024931,2]
[336882241,1725229845944,-500.0,0.00024931,2]
[336882243,1725229845953,-500.0,0.00024931,2]
[336882245,1725229845963,-545.75,0.00024931,2]
[336882247,1725229845973,-500.0,0.00024931,2]
[336882249,1725229845982,-1093.63,0.00024931,2]
[336882251,1725229845992,-500.0,0.00024931,2]
[336882254,1725229846001,-500.0,0.00024931,2]
[336882256,1725229846010,-500.0,0.00024931,2]
[336882259,1725229846019,-855.63,0.00024931,2]
[336882262,1725229846030,-603.79,0.00024931,2]
[336882265,1725229846039,-500.0,0.00024931,2]
[336882268,1725229846049,-500.0,0.00024931,2]
[336882271,1725229846059,-828.06,0.00024931,2]
[336882273,1725229846070,-500.0,0.00024931,2]
[336882275,1725229846080,-722.15,0.00024931,2]
[336882277,1725229846089,-975.62,0.00024931,2]
[336882279,1725229846099,-500.0,0.00024931,2]
[336882281,1725229846108,-500.0,0.00024931,2]
[336882284,1725229846117,-500.0,0.00024931,2]
[336882287,1725229846127,-500.0,0.00024931,2]
[336882288,1725229846136,-500.0,0.00024931,2]
[336882289,1725229846146,-500.0,0.00024931,2]
[336882290,1725229846155,-1087.8,0.00024931,2]
[336882292,1725229846165,-1894.81,0.00024931,2]
[336882294,1725229846174,-500.0,0.00024931,2]
[336882296,1725229846184,-500.0,0.00024931,2]
[336882299,1725229846193,-518.77241438,0.00024931,2]
[336882302,1725229846203,-828.5,0.00024931,2]
[336882304,1725229846212,-500.0,0.00024931,2]
[336882306,1725229846222,-500.0,0.00024931,2]
[336882308,1725229846232,-500.0,0.00024931,2]
[336882310,1725229846242,-1460.07,0.00024931,2]
[336882313,1725229846252,-500.0,0.00024931,2]
[336882316,1725229846261,-500.0,0.00024931,2]
[336882318,1725229846270,-562.25058744,0.00024931,2]
[336882320,1725229846280,-500.0,0.00024931,2]
[336882322,1725229846290,-500.0,0.00024931,2]
[336882324,1725229846299,-1489.69,0.00024931,2]
[336882326,1725229846308,-500.0,0.00024931,2]
[336882328,1725229846318,-500.0,0.00024931,2]
[336882330,1725229846337,-500.0,0.00024931,2]
[336882332,1725229846346,-712.37,0.00024931,2]
[336882334,1725229846354,-500.0,0.00024931,2]
[336882336,1725229846363,-547.4,0.00024931,2]
[336882338,1725229846372,-500.0,0.00024931,2]
[336882339,1725229846382,-500.0,0.00024931,2]
[336882340,1725229846391,-1053.27,0.00024931,2]
[336882341,1725229846400,-500.0,0.00024931,2]
[336882343,1725229846409,-633.26,0.00024931,2]
[336882345,1725229846419,-1445.81,0.00024931,2]
[336882347,1725229846429,-630.29,0.00024931,2]
[336882351,1725229846557,-500.0,0.00024931,2]
[336882352,1725229846573,-500.0,0.00024931,2]
[336882353,1725229846583,-500.0,0.00024931,2]
[336882354,1725229846593,-842.4,0.00024931,2]
[336882355,1725229846603,-500.0,0.00024931,2]
[336882356,1725229846613,-952.13,0.00024931,2]
[336882357,1725229846622,-500.0,0.00024931,2]
[336882358,1725229846632,-2247.56,0.00024931,2]
[336882359,1725229846645,-867.57,0.00024931,2]
[336882360,1725229846654,-500.0,0.00024931,2]
[336882361,1725229846664,-716.34,0.00024931,2]
[336882362,1725229846673,-500.0,0.00024931,2]
[336882363,1725229846684,-1311.32,0.00024931,2]
[336882364,1725229846693,-1433.05,0.00024931,2]
[336882365,1725229846703,-1817.35,0.00024931,2]
[336882366,1725229846712,-500.0,0.00024931,2]
[336882367,1725229846721,-500.0,0.00024931,2]
[336882368,1725229846731,-500.0,0.00024931,2]
[336882369,1725229846740,-1964.85,0.00024931,2]
[336882370,1725229846749,-551.19,0.00024931,2]
[336882371,1725229846759,-1617.06,0.00024931,2]
[336882372,1725229846768,-500.0,0.00024931,2]
[336882373,1725229846778,-535.87,0.00024931,2]
[336882374,1725229846787,-500.0,0.00024931,2]
[336882375,1725229846797,-500.0,0.00024931,2]
[336882376,1725229846806,-923.99,0.00024931,2]
[336882377,1725229846815,-500.0,0.00024931,2]
[336882378,1725229846827,-500.0,0.00024931,2]
[336882379,1725229846836,-803.71,0.00024931,2]
[336882380,1725229846845,-500.0,0.00024931,2]
[336882381,1725229846854,-1625.3,0.00024931,2]
[336882382,1725229846864,-500.0,0.00024931,2]
[336882383,1725229846873,-500.0,0.00024931,2]
[336882384,1725229846882,-500.0,0.00024931,2]
[336882385,1725229846892,-1417.82,0.00024931,2]
[336882386,1725229846901,-506.95692008,0.00024931,2]
[336882387,1725229846910,-159.22190684,0.00024931,2]
[336882388,1725229846919,-500.0,0.00024931,2]
[336882389,1725229846928,-1228.28,0.00024931,2]
[336882390,1725229846938,-500.0,0.00024931,2]
[336882391,1725229846947,-12931.66,0.00024931,2]
[336882392,1725229846956,-500.0,0.00024931,2]
[336882393,1725229846964,-2682.79,0.00024931,2]
[336882394,1725229846973,-500.0,0.00024931,2]
[336882395,1725229846982,-516.3,0.00024931,2]
[336882396,1725229846992,-1562.49,0.00024931,2]
[336882397,1725229847001,-500.0,0.00024931,2]
[336882398,1725229847011,-500.0,0.00024931,2]
[336882399,1725229847020,-1125.21,0.00024931,2]
[336882400,1725229847029,-500.0,0.00024931,2]
[336882401,1725229847038,-500.0,0.00024931,2]
[336882402,1725229847047,-500.0,0.00024931,2]
[336882403,1725229847056,-1179.47,0.00024931,2]
[336882404,1725229847065,-690.37,0.00024931,2]
[336882405,1725229847087,-2664.19,0.00024931,2]
[336882406,1725229847097,-609.16,0.00024931,2]
[336882407,1725229847106,-2283.78,0.00024931,2]
[336882408,1725229847115,-500.0,0.00024931,2]
[336882409,1725229847124,-1324.95,0.00024931,2]
[336882410,1725229847133,-2050.77,0.00024931,2]
[336882411,1725229847142,-576.37,0.00024931,2]
[336882412,1725229847151,-528.95,0.00024931,2]
[336882413,1725229847160,-500.0,0.00024931,2]
[336882414,1725229847170,-500.0,0.00024931,2]
[336882415,1725229847179,-676.49,0.00024931,2]
[336882416,1725229847188,-500.0,0.00024931,2]
[336882417,1725229847197,-721.26,0.00024931,2]
[336882418,1725229847206,-500.0,0.00024931,2]
[336882419,1725229847216,-500.0,0.00024931,2]
[336882420,1725229847225,-500.0,0.00024931,2]
[336882421,1725229847234,-500.0,0.00024931,2]
[336882422,1725229847245,-500.0,0.00024931,2]
[336882423,1725229847254,-1536.08,0.00024931,2]
[336882424,1725229847264,-500.0,0.00024931,2]
[336882425,1725229847273,-1494.56,0.00024931,2]
[336882426,1725229847282,-1158.32,0.00024931,2]
[336882427,1725229847292,-1127.48,0.00024931,2]
[336882428,1725229847301,-1554.61,0.00024931,2]
[336882429,1725229847310,-500.0,0.00024931,2]
[336882430,1725229847323,-500.0,0.00024931,2]
[336882431,1725229847335,-509.7008296,0.00024931,2]
[336882432,1725229847345,-500.0,0.00024931,2]
[336882433,1725229847354,-568.68681265,0.00024931,2]
[336882434,1725229847364,-500.0,0.00024931,2]
[336882435,1725229847374,-500.0,0.00024931,2]
[336882436,1725229847382,-1721.95,0.00024931,2]
[336882437,1725229847392,-520.52677227,0.00024931,2]
[336882438,1725229847401,-1775.85,0.00024931,2]
[336882439,1725229847411,-574.85,0.00024931,2]
[336882440,1725229847421,-642.25,0.00024931,2]
[336882441,1725229847431,-500.0,0.00024931,2]
[336882442,1725229847442,-2541.03,0.00024931,2]
[336882443,1725229847451,-699.61,0.00024931,2]
[336882444,1725229847461,-449.61626795,0.00024931,2]
[336882445,1725229847471,-1051.49,0.00024931,2]
[336882446,1725229847480,-502.31720496,0.00024931,2]
[336882447,1725229847489,-500.0,0.00024931,2]
[336882448,1725229847498,-567.45,0.00024931,2]
[336882449,1725229847508,-556.61,0.00024931,2]
[336882450,1725229847518,-500.0,0.00024931,2]
[336882451,1725229847528,-500.0,0.00024931,2]
[336882452,1725229847538,-1158.11,0.00024931,2]
[336882453,1725229847547,-500.0,0.00024931,2]
[336882454,1725229847557,-500.0,0.00024931,2]
[336882455,1725229847567,-7890.92,0.00024931,2]
[336882456,1725229847579,-500.0,0.00024931,2]
[336882457,1725229847588,-500.0,0.00024931,2]
[336882458,1725229847599,-1722.8,0.00024931,2]
[336882459,1725229847609,-1408.0,0.00024931,2]
[336882460,1725229847618,-728.64,0.00024931,2]
[336882461,1725229847627,-1238.55,0.00024931,2]
[336882462,1725229847638,-500.0,0.00024931,2]
[336882463,1725229847651,-6037.83,0.00024931,2]
[336882464,1725229847661,-717.43,0.00024931,2]
[336882465,1725229847671,-1558.04,0.00024931,2]
[336882466,1725229847680,-500.0,0.00024931,2]
[336882467,1725229847691,-500.0,0.00024931,2]
[336882468,1725229847701,-500.0,0.00024931,2]
[336882469,1725229847711,-1933.99,0.00024931,2]
[336882470,1725229847721,-1714.09,0.00024931,2]
[336882471,1725229847731,-500.0,0.00024931,2]
[336882472,1725229847743,-500.0,0.00024931,2]
[336882473,1725229847752,-647.77,0.00024931,2]
[336882474,1725229847763,-1461.48,0.00024931,2]
[336882475,1725229847773,-2017.0,0.00024931,2]
[336882476,1725229847783,-500.0,0.00024931,2]
[336882477,1725229847793,-638.19648141,0.00024931,2]
[336882478,1725229847802,-500.0,0.00024931,2]
[336882479,1725229847812,-500.0,0.00024931,2]
[336882480,1725229847821,-2442.88,0.00024931,2]
[336882481,1725229847831,-2208.18,0.00024931,2]
[336882482,1725229847841,-500.0,0.00024931,2]
[336882483,1725229847850,-1110.58,0.00024931,2]
[336882484,1725229847860,-524.54605929,0.00024931,2]
[336882485,1725229847869,-1546.13,0.00024931,2]
[336882486,1725229847878,-500.0,0.00024931,2]
[336882487,1725229847888,-500.0,0.00024931,2]
[336882488,1725229847898,-1484.58,0.00024931,2]
[336882489,1725229847907,-500.0,0.00024931,2]
[336882490,1725229847917,-500.0,0.00024931,2]
[336882491,1725229847926,-1246.4,0.00024931,2]
[336882492,1725229847935,-524.99,0.00024931,2]
[336882493,1725229847944,-551.55,0.00024931,2]
[336882494,1725229847953,-500.0,0.00024931,2]
[336882495,1725229847963,-169.0,0.00024932,2]
[336882496,1725229847972,-182.5559643,0.00024968,2]
[336882497,1725229847982,-500.0,0.00024973,2]
[336882498,1725229847992,-153.0,0.00024975,2]
[336882499,1725229848001,-306.0,0.00024975,2]
[336882500,1725229848011,-153.0,0.00024975,2]
[336882501,1725229848020,-285.068132,0.00024975,2]
[336882502,1725229848029,-207.943127,0.00024975,2]
[336882503,1725229848039,-153.0,0.00024975,2]
[336882504,1725229848048,-153.0,0.00024975,2]
[336882505,1725229848057,-153.0,0.00024975,2]
[336882506,1725229848067,-153.0,0.00024975,2]
[336882507,1725229848078,-207.943127,0.00024975,2]
[336882508,1725229848088,-207.943127,0.00024975,2]
[336882509,1725229848098,-207.943127,0.00024975,2]
[336882510,1725229848107,-153.0,0.00024975,2]
[336882511,1725229848116,-207.943127,0.00024975,2]
[336882512,1725229848127,-409.6979826,0.00024975,2]
[336882513,1725229848137,-409.6979826,0.00024975,2]
[336882514,1725229848146,-409.6979826,0.00024975,2]
[336882515,1725229848156,-408.5061526,0.00024975,2]
[336882516,1725229848166,-169.0,0.00025,2]
[336882517,1725229848175,-25130.38802756,0.00025,2]
[336882518,1725229848185,-156.0,0.00025,2]
[336882519,1725229848195,-4878.97835128,0.00025019,2]
[336882520,1725229848205,-150.112233,0.000251,10]
[336882521,1725229848215,-150.112233,0.000251,5]
[336882522,1725229848225,-182.5559643,0.00025105,2]
[336882523,1725229848235,-150.0,0.00025166,2]
[336882524,1725229848245,-8027.8748065,0.00025195,3]
[336882525,1725229848254,-3000.0,0.000252,2]
[336882526,1725229848264,-150.112233,0.000252,9]
[336882527,1725229848273,-500.0,0.00025205,2]
[336882528,1725229848283,-500.0,0.00025205,2]
[336882529,1725229848293,-500.0,0.00025205,2]
[336882530,1725229848303,-500.0,0.00025205,2]
[336882531,1725229848312,-500.0,0.00025205,2]
[336882532,1725229848322,-500.0,0.00025205,2]
[336882533,1725229848331,-500.0,0.00025205,2]
[336882534,1725229848341,-500.0,0.00025205,2]
[336882535,1725229848351,-500.0,0.00025205,2]
[336882536,1725229848361,-500.0,0.00025205,2]
[336882537,1725229848370,-500.0,0.00025205,2]
[336882538,1725229848380,-504.71622997,0.00025205,2]
[336882539,1725229848391,-500.0,0.00025205,2]
[336882540,1725229848401,-500.0,0.00025205,2]
[336882541,1725229848411,-500.0,0.00025205,2]
[336882542,1725229848420,-500.0,0.00025205,2]
[336882543,1725229848430,-535.44,0.00025205,2]
[336882544,1725229848440,-500.0,0.00025205,2]
[336882545,1725229848450,-500.0,0.00025205,2]
[336882546,1725229848460,-500.0,0.00025205,2]
[336882547,1725229848469,-837.46,0.00025205,2]
[336882548,1725229848479,-500.0,0.00025205,2]
[336882549,1725229848489,-500.0,0.00025205,2]
[336882550,1725229848499,-804.59,0.00025205,2]
[336882551,1725229848508,-500.0,0.00025205,2]
[336882552,1725229848518,-500.0,0.00025205,2]
[336882553,1725229848528,-500.0,0.00025205,2]
[336882554,1725229848538,-505.03832466,0.00025205,2]
[336882555,1725229848547,-636.08,0.00025205,2]
[336882556,1725229848556,-500.0,0.00025205,2]
[336882557,1725229848566,-729.17,0.00025205,2]
[336882558,1725229848579,-500.0,0.00025205,2]
[336882559,1725229848588,-500.0,0.00025205,2]
[336882560,1725229848599,-500.0,0.00025205,2]
[336882561,1725229848609,-500.0,0.00025205,2]
[336882562,1725229848618,-500.0,0.00025205,2]
[336882563,1725229848628,-970.74,0.00025205,2]
[336882564,1725229848641,-500.0,0.00025205,2]
[336882565,1725229848652,-500.0,0.00025205,2]
[336882566,1725229848663,-500.0,0.00025205,2]
[336882567,1725229848675,-500.0,0.00025205,2]
[336882568,1725229848685,-500.0,0.00025205,2]
[336882569,1725229848695,-656.9,0.00025205,2]
[336882570,1725229848705,-500.0,0.00025205,2]
[336882571,1725229848715,-500.0,0.00025205,2]
[336882572,1725229848725,-500.0,0.00025205,2]
[336882573,1725229848735,-500.0,0.00025205,2]
[336882574,1725229848747,-500.0,0.00025205,2]
[336882575,1725229848758,-369.62122667,0.00025205,2]
[336882576,1725229848768,-500.0,0.00025205,2]
[336882577,1725229848778,-805.62,0.00025205,2]
[336882578,1725229848788,-718.45,0.00025205,2]
[336882579,1725229848798,-500.0,0.00025205,2]
[336882580,1725229848807,-500.0,0.00025205,2]
[336882581,1725229848818,-500.0,0.00025205,2]
[336882582,1725229848829,-527.33,0.00025205,2]
[336882583,1725229848840,-500.0,0.00025205,2]
[336882584,1725229848850,-1234.61,0.00025205,2]
[336882585,1725229848862,-500.0,0.00025205,2]
[336882586,1725229848871,-500.0,0.00025205,2]
[336882587,1725229848881,-500.0,0.00025205,2]
[336882588,1725229848890,-500.0,0.00025205,2]
[336882589,1725229848901,-500.0,0.00025205,2]
[336882590,1725229848911,-500.0,0.00025205,2]
[336882591,1725229848920,-500.0,0.00025205,2]
[336882592,1725229848930,-500.0,0.00025205,2]
[336882593,1725229848940,-206.90056765,0.00025205,2]
[336882594,1725229848951,-500.0,0.00025205,2]
[336882595,1725229848961,-500.0,0.00025205,2]
[336882596,1725229848971,-500.0,0.00025205,2]
[336882597,1725229848980,-3865.88,0.00025205,2]
[336882598,1725229848990,-461.40907727,0.00025205,2]
[336882599,1725229848999,-831.9,0.00025205,2]
[336882600,1725229849010,-500.0,0.00025205,2]
[336882601,1725229849020,-500.0,0.00025205,2]
[336882602,1725229849029,-500.0,0.00025205,2]
[336882603,1725229849039,-1318.18,0.00025205,2]
[336882604,1725229849048,-500.0,0.00025205,2]
[336882605,1725229849057,-543.89,0.00025205,2]
[336882606,1725229849182,-500.0,0.00025205,2]
[336882607,1725229849191,-681.52,0.00025205,2]
[336882608,1725229849201,-538.98,0.00025205,2]
[336882609,1725229849211,-642.97,0.00025205,2]
[336882610,1725229849220,-819.0,0.00025205,2]
[336882611,1725229849229,-500.0,0.00025205,2]
[336882612,1725229849239,-611.79,0.00025205,2]
[336882613,1725229849249,-500.0,0.00025205,2]
[336882614,1725229849259,-500.0,0.00025205,2]
[336882615,1725229849269,-500.0,0.00025205,2]
[336882616,1725229849278,-500.0,0.00025205,2]
[336882617,1725229849288,-609.59,0.00025205,2]
[336882618,1725229849297,-500.0,0.00025205,2]
[336882619,1725229849307,-500.0,0.00025205,2]
[336882620,1725229849316,-500.0,0.00025205,2]
[336882621,1725229849327,-500.0,0.00025205,2]
[336882622,1725229849337,-500.0,0.00025205,2]
[336882623,1725229849346,-500.0,0.00025205,2]
[336882624,1725229849356,-500.0,0.00025205,2]
[336882625,1725229849365,-545.75,0.00025205,2]
[336882626,1725229849375,-500.0,0.00025205,2]
[336882627,1725229849385,-1093.63,0.00025205,2]
[336882628,1725229849395,-500.0,0.00025205,2]
[336882629,1725229849405,-500.0,0.00025205,2]
[336882630,1725229849415,-855.63,0.00025205,2]
[336882631,1725229849425,-603.79,0.00025205,2]
[336882632,1725229849435,-500.0,0.00025205,2]
[336882633,1725229849446,-500.0,0.00025205,2]
[336882634,1725229849456,-828.06,0.00025205,2]
[336882635,1725229849466,-500.0,0.00025205,2]
[336882636,1725229849477,-722.15,0.00025205,2]
[336882637,1725229849487,-975.62,0.00025205,2]
[336882638,1725229849497,-500.0,0.00025205,2]
[336882639,1725229849507,-500.0,0.00025205,2]
[336882640,1725229849517,-500.0,0.00025205,2]
[336882641,1725229849527,-500.0,0.00025205,2]
[336882642,1725229849538,-1087.8,0.00025205,2]
[336882643,1725229849548,-1894.81,0.00025205,2]
[336882644,1725229849558,-500.0,0.00025205,2]
[336882645,1725229849567,-500.0,0.00025205,2]
[336882646,1725229849585,-828.5,0.00025205,2]
[336882647,1725229849595,-500.0,0.00025205,2]
[336882648,1725229849605,-500.0,0.00025205,2]
[336882649,1725229849615,-1460.07,0.00025205,2]
[336882650,1725229849624,-500.0,0.00025205,2]
[336882651,1725229849634,-500.0,0.00025205,2]
[336882652,1725229849643,-500.0,0.00025205,2]
[336882653,1725229849654,-1489.69,0.00025205,2]
[336882654,1725229849664,-500.0,0.00025205,2]
[336882655,1725229849674,-500.0,0.00025205,2]
[336882656,1725229849686,-500.0,0.00025205,2]
[336882657,1725229849696,-712.37,0.00025205,2]
[336882658,1725229849707,-500.0,0.00025205,2]
[336882659,1725229849716,-547.4,0.00025205,2]
[336882660,1725229849725,-500.0,0.00025205,2]
[336882661,1725229849735,-500.0,0.00025205,2]
[336882662,1725229849745,-1053.27,0.00025205,2]
[336882663,1725229849758,-500.0,0.00025205,2]
[336882664,1725229849768,-633.26,0.00025205,2]
[336882665,1725229849778,-1445.81,0.00025205,2]
[336882666,1725229849788,-630.29,0.00025205,2]
[336882667,1725229849799,-500.0,0.00025205,2]
[336882668,1725229849809,-500.0,0.00025205,2]
[336882669,1725229849820,-183.129755,0.00025205,7]
[336882670,1725229849832,-500.0,0.00025205,2]
[336882671,1725229849842,-500.0,0.00025205,2]
[336882672,1725229849855,-842.4,0.00025205,2]
[336882673,1725229849866,-952.13,0.00025205,2]
[336882674,1725229849875,-183.129755,0.00025205,7]
[336882675,1725229849886,-500.0,0.00025205,2]
[336882676,1725229849897,-2247.56,0.00025205,2]
[336882677,1725229849907,-867.57,0.00025205,2]
[336882678,1725229849917,-500.0,0.00025205,2]
[336882679,1725229849927,-716.34,0.00025205,2]
[336882680,1725229849937,-500.0,0.00025205,2]
[336882681,1725229849946,-1311.32,0.00025205,2]
[336882682,1725229849957,-1433.05,0.00025205,2]
[336882683,1725229849967,-1817.35,0.00025205,2]
[336882684,1725229849976,-500.0,0.00025205,2]
[336882685,1725229849986,-500.0,0.00025205,2]
[336882686,1725229849996,-1964.85,0.00025205,2]
[336882687,1725229850005,-551.19,0.00025205,2]
[336882688,1725229850015,-1617.06,0.00025205,2]
[336882689,1725229850025,-500.0,0.00025205,2]
[336882690,1725229850034,-535.87,0.00025205,2]
[336882691,1725229850045,-500.0,0.00025205,2]
[336882692,1725229850054,-500.0,0.00025205,2]
[336882693,1725229850064,-923.99,0.00025205,2]
[336882694,1725229850077,-500.0,0.00025205,2]
[336882695,1725229850087,-500.0,0.00025205,2]
[336882696,1725229850097,-803.71,0.00025205,2]
[336882697,1725229850106,-500.0,0.00025205,2]
[336882698,1725229850117,-1625.3,0.00025205,2]
[336882699,1725229850126,-500.0,0.00025205,2]
[336882700,1725229850135,-500.0,0.00025205,2]
[336882701,1725229850145,-500.0,0.00025205,2]
[336882702,1725229850154,-1417.82,0.00025205,2]
[336882703,1725229850164,-500.0,0.00025205,2]
[336882704,1725229850173,-1228.28,0.00025205,2]
[336882705,1725229850183,-500.0,0.00025205,2]
[336882706,1725229850192,-12931.66,0.00025205,2]
[336882707,1725229850201,-500.0,0.00025205,2]
[336882708,1725229850211,-2682.79,0.00025205,2]
[336882709,1725229850220,-500.0,0.00025205,2]
[336882710,1725229850230,-516.3,0.00025205,2]
[336882711,1725229850240,-1562.49,0.00025205,2]
[336882712,1725229850249,-500.0,0.00025205,2]
[336882713,1725229850260,-500.0,0.00025205,2]
[336882714,1725229850270,-1125.21,0.00025205,2]
[336882715,1725229850279,-500.0,0.00025205,2]
[336882716,1725229850290,-500.0,0.00025205,2]
[336882717,1725229850300,-1179.47,0.00025205,2]
[336882718,1725229850312,-690.37,0.00025205,2]
[336882719,1725229850324,-2664.19,0.00025205,2]
[336882720,1725229850334,-609.16,0.00025205,2]
[336882721,1725229850345,-2283.78,0.00025205,2]
[336882722,1725229850355,-500.0,0.00025205,2]
[336882723,1725229850366,-1324.95,0.00025205,2]
[336882724,1725229850376,-2050.77,0.00025205,2]
[336882725,1725229850386,-576.37,0.00025205,2]
[336882726,1725229850396,-528.95,0.00025205,2]
[336882727,1725229850406,-500.0,0.00025205,2]